[Event "FIDE World School-ch O-15 2025"]
[Site "Vrnjacka Banja"]
[Date "2025.03.21"]
[Round "2.1"]
[White "Kuka Kyle"]
[Black "Scheglov, Gleb"]
[Result "0-1"]
[Annotator "TA"]
[ECO "B10"]
[WhiteElo "1961"]
[BlackElo "2306"]
[PlyCount "66"]
[EventDate "2025.03.19"]
[EventType "swiss"]
[EventCountry "SRB"]
[SourceTitle "playchess.com"]
[Source "ChessBase"]
[SourceQuality "1"]
[TimeControl "5400+30"]

{[%evp 14,64,-20,-30,-12,-9,-12,-45,-16,-22,-17,-39,-25,-25,-33,-21,-27,-64,-65,-96,-34,-84,-58,-76,-66,-72,-51,-70,-66,-66,-16,-27,126,111,116,100,124,29,29,0,0,-4,-4,-198,-134,-112,-154,-271,-267,-462,-422,-741,-248]} 1. e4 {[%emt 0:00:02]} c6 {[%emt 0:00:32]} 2. d3 {[%emt 0:00:10]} d5 {[%emt 0:00:10]} 3. Nd2 {[%emt 0:00:07]} e5 {[%emt 0:00:06]} 4. Ngf3 {[%emt 0:00:06]} Bd6 {[%emt 0:02:44]} 5. g3 {[%emt 0:00:09]} Nf6 {[%emt 0:04:11]} 6. Bg2 {[%emt 0:00:09]} O-O {[%emt 0:00:56]} 7. O-O {[%emt 0:00:07]} Re8 {[%emt 0:00:43]} 8. Re1 {[%emt 0:00:19]} Bc7 {[%emt 0:03:28] B10: Caro-Kann: 2 d3 and 2 c4.} 9. c3 {[%emt 0:00:25]} a5 {[%emt 0:02:13]} 10. a4 {[%emt 0:00:17]} Na6 $146 {[%emt 0:01:49] Black is slightly better.} ({Predecessor:} 10... h6 11. b3 dxe4 12. dxe4 b5 13. Qe2 Nbd7 14. axb5 cxb5 15. b4 Bb6 16. Bb2 Bb7 {½-½ Brotherton,T (2059)-Tudor,V (2278) Webchess op7 Gr091 email 2017}) 11. Qc2 {[%emt 0:02:10]} Nc5 {[%emt 0:04:55]} 12. b4 {[%emt 0:02:09]} axb4 {[%emt 0:09:54]} 13. cxb4 {[%emt 0:07:35] White sacrificed a pawn} dxe4 {[%emt 0:01:06]} 14. bxc5 {[%emt 0:11:37]} exf3 {[%emt 0:00:06]} 15. Nxf3 {[%emt 0:00:10]} Bf5 {[%emt 0:03:08]} 16. Rd1 {[%emt 0:01:54]} Qc8 {[%emt 0:08:05]} (16... Qd7 $17) 17. Qc4 {[%emt 0:05:42]} (17. Ng5 $15) 17... h6 {[%emt 0:05:33]} 18. Bb2 {[%emt 0:03:54]} Be6 {[%emt 0:00:49]} 19. Qc2 {[%emt 0:02:50]} Bd5 {[%emt 0:00:24]} 20. d4 {[%emt 0:04:33]} e4 {[%emt 0:13:07] Black is more active.} 21. Ne5 {[%emt 0:00:57]} Nd7 {[%emt 0:05:43]} ({Black should play} 21... Qe6 $15 22. Ra3 h5) 22. Bh3 $11 {[%emt 0:04:07] [#]} Nxe5 {[%emt 0:01:43]} 23. Bxc8 $16 {[%emt 0:01:49]} Nf3+ {[%emt 0:00:02] [#]} 24. Kf1 $1 {[%emt 0:00:57]} Raxc8 {[%emt 0:00:08] [#]} 25. Ra3 {[%emt 0:03:44]} (25. Bc1 $1 $16) 25... Nxh2+ $11 {[%emt 0:01:34]} 26. Kg2 {[%emt 0:00:34]} Nf3 {[%emt 0:00:38][%cal Oe4e3] aiming for ...e3!.} 27. Re3 {[%emt 0:03:41]} f5 {[%emt 0:00:16]} 28. Rde1 $2 {[%emt 0:12:07]} f4 $1 $19 {[%emt 0:02:22]} (28... Nxe1+ 29. Rxe1 f4 30. gxf4 $17) 29. gxf4 {[%emt 0:03:35]} Bxf4 {[%emt 0:00:38] Black has a strong knight and is better A strong pair of Bishops.} (29... Nxe1+ 30. Rxe1 e3+ (30... Bxf4 31. Bc1 $11) 31. Kf1 $11) 30. R1e2 {[%emt 0:06:43]} (30. Kf1 $17) 30... Bxe3 {[%emt 0:03:43]} 31. Rxe3 {[%emt 0:01:07] White is weak on the light squares} (31. fxe3 Re6 32. Kf1) 31... Re6 {[%emt 0:00:07] ( -> ...Rg6+)} 32. Kf1 {[%emt 0:22:44]} (32. Qc3 $142) 32... Rf8 $2 {[%emt 0:00:37]} (32... Bc4+ 33. Re2 Ba6 (33... Bxe2+ 34. Kxe2 Rc7 35. Qb3 $17)) 33. Bc3 {[%emt 0:00:00]} Bc4+ {[%emt 0:00:22] Weighted Error Value: White=0.64/Black=0.31  Loses game:     	White=1     	---        Mistake:       	White=5     	Black=4      Inaccurate:     	White=3     	Black=1      OK:         	White=7     	Black=9      Best:        	White=2     	Black=4      Strong:       	White=1     	Black=1} 0-1

[Event "FIDE World School-ch O-15 2025"]
[Site "Vrnjacka Banja"]
[Date "2025.03.21"]
[Round "2.2"]
[White "Tabatadze, Erekle"]
[Black "Markovic, Kosta"]
[Result "1-0"]
[Annotator "TA"]
[ECO "E44"]
[WhiteElo "2180"]
[BlackElo "1903"]
[PlyCount "93"]
[EventDate "2025.03.19"]
[EventType "swiss"]
[EventCountry "SRB"]
[SourceTitle "playchess.com"]
[Source "ChessBase"]
[SourceQuality "1"]
[TimeControl "5400+30"]

{[%evp 14,93,33,-1,57,35,34,26,82,35,82,70,88,83,114,114,129,125,166,166,167,171,166,156,177,107,96,97,156,160,158,147,185,172,183,129,149,145,233,229,216,188,182,193,193,195,216,214,214,212,1366,1431,1378,1210,1406,1409,846,1452,1456,1402,1220,1008,2095,2040,5879,4297,6115,6075,6087,6087,29952,5110,29968,29969,29982,29983,29983,29984,29985,29986,29986,29986]} 1. d4 {[%emt 0:02:37]} Nf6 {[%emt 0:00:05]} 2. c4 {[%emt 0:00:12]} e6 {[%emt 0:00:03]} 3. Nc3 {[%emt 0:00:28]} Bb4 {[%emt 0:00:06]} 4. e3 {[%emt 0:00:12]} b6 {[%emt 0:00:04]} 5. Nge2 {[%emt 0:01:44]} Bb7 {[%emt 0:01:44]} 6. a3 {[%emt 0:04:31]} Be7 {[%emt 0:00:16]} 7. d5 {[%emt 0:00:38]} O-O {[%emt 0:03:38]} 8. e4 {[%emt 0:09:34]} d6 {[%emt 0:03:34] E44: Nimzo-Indian: Rubinstein: 4...b6 5 Ne2.} (8... Re8 $11) 9. Ng3 {[%emt 0:08:14]} exd5 {[%emt 0:00:31]} 10. cxd5 {[%emt 0:03:04]} c5 $146 {[%emt 0:02:13]} (10... c6 $11) (10... Nbd7 11. Be2 a5 12. O-O Re8 13. Rb1 Bf8 14. f3 g6 15. Be3 Bg7 16. Bd4 Nc5 {1-0 Merriman,J (2251)-Saim,M (2169) Titled Tuesday intern op 19th Dec Late blitz 2023 (9)}) 11. dxc6 {[%emt 0:04:22]} ({Better is} 11. Nf5 $16) 11... Bxc6 {[%emt 0:03:58]} (11... Nxc6 $14 {should be considered.} 12. Be2 Qd7) 12. Bc4 $1 $16 {[%emt 0:02:34]} Nbd7 {[%emt 0:14:05]} 13. O-O {[%emt 0:01:37]} Nc5 {[%emt 0:10:54]} 14. f3 {[%emt 0:02:10]} Bd7 {[%emt 0:04:19]} 15. Be3 {[%emt 0:07:04]} a6 {[%emt 0:15:38]} 16. b4 {[%emt 0:01:22]} Be6 {[%emt 0:04:13]} 17. Bxe6 {[%emt 0:01:51]} Nxe6 {[%emt 0:00:04]} 18. Nf5 {[%emt 0:02:30]} Re8 {[%emt 0:03:06][%cal Bf8e8,Be8e7,Be7d7][%mdl 32]} 19. Nd5 {[%emt 0:04:28]} (19. Qd2 $18) 19... Nxd5 {[%emt 0:01:03]} 20. Qxd5 {[%emt 0:00:07]} g6 {[%emt 0:04:37] [#]} (20... b5 $142) 21. Nxe7+ $1 {[%emt 0:00:25]} Rxe7 {[%emt 0:02:02]} 22. Rfd1 {[%emt 0:01:18][%csl Od6] White attacks a weakness} Rd7 {[%emt 0:00:45]} 23. Rac1 {[%emt 0:04:21]} b5 {[%emt 0:03:53]} 24. Rc6 {[%emt 0:05:20]} (24. e5 $18) 24... Nc7 {[%emt 0:00:51]} 25. Qd4 {[%emt 0:03:04] White is much more active. Black is weak on the dark squares} d5 {[%emt 0:02:15]} (25... Ne6 $16 {was worth a try.} 26. Qd3 Qf6) 26. Qe5 $18 {[%emt 0:06:37]} Qe8 {[%emt 0:10:12]} 27. Qxe8+ {[%emt 0:01:27]} Rxe8 {[%emt 0:00:23][%cal Ba8e8,Be8e7,Be7c7][%mdl 32]} 28. Bb6 {[%emt 0:00:45]} Ree7 {[%emt 0:01:55]} 29. Kf2 {[%emt 0:01:35]} f5 {[%emt 0:03:19]} 30. Bxc7 {[%emt 0:01:32]} Rxc7 {[%emt 0:00:05]} 31. exd5 {[%emt 0:00:33][%cal Be4d5,Bd5c6][%mdl 32] Rxc7 is the strong threat.} (31. Rxa6 dxe4 32. fxe4 Rc2+ 33. Kg1 Kg7 $11) 31... Rxc6 {[%emt 0:01:14]} (31... Kf7 32. Rdc1 (32. Rxa6 Rc2+ 33. Kg3 Ree2 $18) 32... Rxc6 33. dxc6 Rc7) 32. dxc6 {[%emt 0:20:14][%mdl 4096] Endgame KR-KR. White is a pawn up.} Rc7 {[%emt 0:00:01]} 33. Rd8+ {[%emt 0:00:00]} Kf7 {[%emt 0:00:10] [#]} 34. Rd7+ $1 {[%emt 0:00:00]} ({Inferior is} 34. Rd6 Ke7 35. Rd7+ Rxd7 36. cxd7 Kxd7 $11) 34... Rxd7 {[%emt 0:00:05]} 35. cxd7 {[%emt 0:00:00] KP-KP. White is a pawn up.} Ke7 {[%emt 0:00:03]} 36. Ke3 {[%emt 0:00:00]} Kxd7 {[%emt 0:00:10]} 37. Kd4 {[%emt 0:00:00]} Kd6 {[%emt 0:00:24]} 38. f4 {[%emt 0:00:00]} Kc6 {[%emt 0:05:00]} 39. Ke5 {[%emt 0:00:00]} a5 {[%emt 0:00:08]} 40. Ke6 {[%emt 0:00:00]} Kb6 {[%emt 0:00:29]} 41. Kd6 {[%emt 0:00:00]} h6 {[%emt 0:02:06]} 42. h4 {[%emt 0:00:00] Intending Ke6 and mate.} h5 {[%emt 0:00:08]} 43. g3 {[%emt 0:00:00] White mates.} axb4 {[%emt 0:01:13]} 44. axb4 {[%emt 0:00:00]} Kb7 {[%emt 0:00:07]} 45. Kc5 {[%emt 0:00:00]} Ka6 {[%emt 0:00:03]} 46. Kc6 {[%emt 0:00:00]} Ka7 {[%emt 0:00:03]} 47. Kxb5 {[%emt 0:00:00] Weighted Error Value: White=0.12 (very precise) /Black=0.88  Mistake:       	White=3     	Black=5      Inaccurate:     	---       	Black=2      OK:         	White=12    	Black=4      Best:        	---       	Black=1      Strong:       	White=1     	---} 1-0

[Event "FIDE World School-ch O-15 2025"]
[Site "Vrnjacka Banja"]
[Date "2025.03.21"]
[Round "2.3"]
[White "Panic, Viktor"]
[Black "Tulendinov, Dinmukhammed"]
[Result "1/2-1/2"]
[Annotator "TA"]
[ECO "B48"]
[WhiteElo "1945"]
[BlackElo "2173"]
[PlyCount "54"]
[EventDate "2025.03.19"]
[EventType "swiss"]
[EventCountry "SRB"]
[SourceTitle "playchess.com"]
[Source "ChessBase"]
[SourceQuality "1"]
[TimeControl "5400+30"]

{[%evp 11,54,37,43,35,35,50,43,4,22,21,13,21,20,19,44,31,33,4,37,0,0,-31,-30,-39,-27,-33,-64,-47,-52,-243,-241,-254,-258,-247,-243,-263,-251,-300,-262,-316,-258,-317,-265,-261,-156]} 1. e4 {[%emt 0:00:05]} c5 {[%emt 0:01:52]} 2. Nf3 {[%emt 0:00:11]} e6 {[%emt 0:00:05]} 3. d4 {[%emt 0:00:06]} cxd4 {[%emt 0:00:00]} 4. Nxd4 {[%emt 0:00:13]} Nc6 {[%emt 0:00:04]} 5. Nc3 {[%emt 0:00:07]} Qc7 {[%emt 0:00:07]} 6. Be3 {[%emt 0:00:09]} a6 {[%emt 0:00:13]} 7. Qf3 {[%emt 0:00:08] B48: Sicilian: Taimanov: 5 Nc3 Qc7 6 Be3 a6 without Be2.} Bd6 {[%emt 0:00:32] Prevents Qg3.} 8. O-O-O {[%emt 0:00:33]} Be5 {[%emt 0:00:25]} 9. Kb1 {[%emt 0:07:39] White is slightly better.} b5 {[%emt 0:06:30]} 10. Nxc6 {[%emt 0:04:14]} Qxc6 {[%emt 0:07:47]} 11. Bd4 {[%emt 0:01:03]} Bxd4 {[%emt 0:01:51]} 12. Rxd4 {[%emt 0:00:30]} Ne7 {[%emt 0:02:49]} 13. Be2 {[%emt 0:03:42]} O-O {[%emt 0:08:20]} 14. h4 $146 {[%emt 0:07:45]} (14. Rhd1 Qc7 15. Rd6 Rb8 16. Qg3 Qa5 17. Bd3 b4 18. Ne2 Rb6 19. h4 Nc6 20. e5 {0-1 Darmaeva,N (1903)-Khuslen,E (1910) Asia-ch U16 Girls 2023 (9)}) 14... Qc5 {[%emt 0:14:38]} 15. Rd2 {[%emt 0:05:52]} b4 {[%emt 0:00:49]} 16. Nd1 {[%emt 0:09:30]} d5 {[%emt 0:07:14]} 17. exd5 {[%emt 0:11:47]} Nxd5 {[%emt 0:00:30]} 18. Ne3 {[%emt 0:00:44]} Bb7 $36 {[%emt 0:05:02][%mdl 2048] Black has some pressure.} 19. Nxd5 {[%emt 0:01:45]} Bxd5 {[%emt 0:00:01]} 20. Qg3 {[%emt 0:01:16] [#] White does not recover from this.} ({Better is} 20. Qf4 $15) 20... Bxa2+ $1 $19 {[%emt 0:21:41][%mdl 512]} 21. Kxa2 {[%emt 0:01:52] [#] Qe3 is the strong threat.} (21. Kc1 Qa5) 21... b3+ $1 {[%emt 0:00:02][%mdl 512]} 22. Kb1 {[%emt 0:06:15] [#]} (22. cxb3 Qa5+ 23. Kb1 Qxd2 $19) 22... Qa5 $1 {[%emt 0:00:12]} 23. Qxb3 {[%emt 0:01:53]} Qxd2 {[%emt 0:00:02] Black has a decisive advantage.} 24. Qd3 {[%emt 0:03:32]} Qb4 {[%emt 0:00:28]} 25. h5 {[%emt 0:03:54]} h6 {[%emt 0:00:06] And now ...Rab8 would win.} 26. c3 {[%emt 0:01:31]} Qb6 {[%emt 0:00:17]} 27. Qe3 {[%emt 0:00:52]} Rfb8 {[%emt 0:13:39] Weighted Error Value: White=0.30/Black=0.14 (very precise)   Loses game:     	White=1     	---        Mistake:       	---       	Black=1      Inaccurate:     	White=4     	Black=1      OK:         	White=7     	Black=7      Best:        	White=1     	---        Strong:       	---       	Black=1      Brilliant:      	---       	Black=2} (27... Qa5 $19 28. Rc1 Rab8) 1/2-1/2

[Event "FIDE World School-ch O-15 2025"]
[Site "Vrnjacka Banja"]
[Date "2025.03.21"]
[Round "2.4"]
[White "Blagoveshchenskiy, Roman"]
[Black "Durucay, Uygar"]
[Result "1-0"]
[Annotator "TA"]
[ECO "D61"]
[WhiteElo "1910"]
[BlackElo "2159"]
[PlyCount "89"]
[EventDate "2025.03.19"]
[EventType "swiss"]
[EventCountry "SRB"]
[SourceTitle "playchess.com"]
[Source "ChessBase"]
[SourceQuality "1"]
[TimeControl "5400+30"]

{[%evp 24,89,15,10,8,5,19,16,6,0,0,-16,-16,-51,-38,-64,-59,-55,0,-19,-5,-36,-16,-27,29,0,42,0,0,0,0,0,0,0,0,0,35,10,40,16,29,0,211,203,216,209,220,216,390,364,454,445,490,492,1007,880,1112,1106,1662,1568,1325,1222,29983,29984,29983,29982,29991,29984]} 1. d4 {[%emt 0:00:05]} Nf6 {[%emt 0:00:24]} 2. c4 {[%emt 0:00:31]} e6 {[%emt 0:00:14]} 3. Nf3 {[%emt 0:00:27]} d5 {[%emt 0:00:49]} 4. Nc3 {[%emt 0:00:19]} Nbd7 {[%emt 0:00:40]} 5. Bg5 {[%emt 0:00:25]} h6 {[%emt 0:00:29]} 6. Bh4 {[%emt 0:00:49]} Be7 {[%emt 0:00:11]} 7. e3 {[%emt 0:00:45]} O-O {[%emt 0:00:42]} 8. cxd5 {[%emt 0:02:12]} Nxd5 {[%emt 0:01:42]} 9. Bxe7 {[%emt 0:00:36]} Qxe7 {[%emt 0:00:07]} 10. Nxd5 {[%emt 0:00:40]} exd5 {[%emt 0:00:05]} 11. Bd3 {[%emt 0:00:41]} c6 {[%emt 0:00:15]} 12. O-O {[%emt 0:00:59]} Nf6 {[%emt 0:01:57]} 13. Qc2 {[%emt 0:02:55]} Ne4 {[%emt 0:07:30] D61: Queen's Gambit Declined: Classical: 7 Qc2.} 14. Ne5 {[%emt 0:04:55]} Re8 $146 {[%emt 0:02:06]} (14... Nf6 15. Rfe1 Ng4 16. Nf3 Be6 17. h3 Nf6 18. Ne5 Rac8 19. Nf3 c5 20. Qd2 c4 21. Bc2 {0-1 Koszo,A-Rab,J HUN-chT2 Toth 0708 2007 (4)}) 15. f3 {[%emt 0:03:16]} Nd6 {[%emt 0:01:29] The position is equal.} 16. e4 {[%emt 0:11:22]} Be6 {[%emt 0:05:16]} 17. Rae1 {[%emt 0:01:18]} Qd8 {[%emt 0:02:24]} 18. Qf2 {[%emt 0:10:39]} Qb6 $1 {[%emt 0:04:10]} 19. Bb1 {[%emt 0:03:10]} Rad8 {[%emt 0:03:12]} 20. Rd1 {[%emt 0:01:32]} Bc8 {[%emt 0:29:49]} 21. exd5 {[%emt 0:10:09]} cxd5 {[%emt 0:00:05]} 22. g4 {[%emt 0:04:00]} Nb5 {[%emt 0:07:49][%cal Ob5d4]} 23. Kg2 {[%emt 0:11:19]} Nd6 {[%emt 0:17:40]} (23... Nxd4 $142 24. Qxd4 Qxd4 25. Rxd4 Rxe5) 24. Qc2 {[%emt 0:03:42]} f5 {[%emt 0:00:10]} (24... g6 $5) 25. a4 {[%emt 0:01:53]} Be6 {[%emt 0:02:23]} 26. b3 {[%emt 0:01:19]} Rc8 {[%emt 0:01:36]} 27. Qd3 {[%emt 0:00:14]} Qc7 {[%emt 0:01:52]} 28. Rfe1 {[%emt 0:02:47][%cal Bf1e1,Be1e3,Be3e4][%mdl 32]} Qc3 {[%emt 0:02:21]} 29. h3 {[%emt 0:01:37]} a6 {[%emt 0:01:06]} 30. Rd2 {[%emt 0:01:10]} Qb4 {[%emt 0:02:20]} (30... Qxd3 31. Nxd3 fxg4 32. hxg4 Rc3) 31. Re3 {[%emt 0:01:21]} Rc1 {[%emt 0:01:41][%cal Oc1b1] Hoping for ...Rxb1!. Counterplay White} 32. Rde2 {[%emt 0:00:37]} (32. Rd1 {simplifies} Qa3 33. Rde1 Rxe1 34. Rxe1 Qb2+ 35. Re2) 32... Ne4 $2 {[%emt 0:02:55]} 33. gxf5 $18 {[%emt 0:04:09]} (33. fxe4 $2 fxe4 $17 (33... dxe4 $2 34. Qd2 $19)) 33... Bxf5 {[%emt 0:00:39]} 34. fxe4 {[%emt 0:02:55]} dxe4 {[%emt 0:00:01]} 35. Rxe4 {[%emt 0:00:45]} Qd6 {[%emt 0:01:20] [#] Dodges Nc6} (35... Qc3 36. Qf3 (36. Qxc3 Rxc3 $18) 36... Qxf3+ 37. Nxf3 Rb8) 36. Qf3 $1 {[%emt 0:03:34]} Be6 {[%emt 0:00:30]} (36... Bxe4 37. Bxe4) 37. Bd3 {[%emt 0:00:25]} Bd5 {[%emt 0:00:22]} 38. Bc4 {[%emt 0:00:23]} Rxe5 {[%emt 0:00:28]} (38... b5 $142 39. Bxd5+ (39. axb5 axb5 40. Bxd5+ Qxd5 $18) 39... Qxd5 40. axb5 Rf8) 39. dxe5 {[%emt 0:00:31][%cal Bd4e5,Be5e6,Be6e7][%mdl 32]} Qc5 {[%emt 0:00:38]} 40. Qe3 {[%emt 0:00:47]} Rxc4 {[%emt 0:00:31]} 41. bxc4 {[%emt 0:00:20]} Qxc4 {[%emt 0:00:07] [#]} 42. e6 $1 {[%emt 0:00:30] and e7 should not be overlooked} Qxa4 {[%emt 0:00:21] [#]} (42... Qb4 43. Kh2) 43. e7 $1 {[%emt 0:00:17] White mates.} Qe8 {[%emt 0:00:05] [#]} 44. Qf3 $1 {[%emt 0:00:31]} Bf7 {[%emt 0:01:28]} (44... Bc6 45. Kf2) 45. Rf2 {[%emt 0:00:19] Weighted Error Value: White=0.08 (flawless) /Black=0.86  Loses game:     	---       	Black=1      Mistake:       	---       	Black=3      Inaccurate:     	White=6     	Black=4      OK:         	White=7     	Black=8      Best:        	White=3     	---        Strong:       	---       	Black=1} 1-0

[Event "FIDE World School-ch O-15 2025"]
[Site "Vrnjacka Banja"]
[Date "2025.03.21"]
[Round "2.5"]
[White "Kutanjac, Aleksandar"]
[Black "Dandeniya, D D L N"]
[Result "0-1"]
[Annotator "TA"]
[ECO "A48"]
[WhiteElo "2103"]
[BlackElo "1881"]
[PlyCount "98"]
[EventDate "2025.03.19"]
[EventType "swiss"]
[EventCountry "SRB"]
[SourceTitle "playchess.com"]
[Source "ChessBase"]
[SourceQuality "1"]
[TimeControl "5400+30"]

{[%evp 17,98,0,0,-21,-16,-18,-2,-21,-16,-15,0,-37,-19,-36,-54,-52,-34,-81,-89,-128,-119,-135,-124,-123,-125,-124,-128,-134,0,0,0,0,-7,-64,-85,-228,-229,-229,-217,-214,-243,-247,-233,-246,-242,-244,-244,-244,-211,-235,-212,-307,-288,-295,-280,-280,-280,-268,-272,-276,-269,-588,-581,-570,-512,-565,-570,-958,-867,-4353,-1683,-5591,-5591,-5175,-5073,-4802,-1331,-1775,-1837,-2925,-2345,-5110,-5102]} 1. d4 {[%emt 0:00:03]} d6 {[%emt 0:00:38]} 2. Bf4 {[%emt 0:00:07]} Nf6 {[%emt 0:00:10]} 3. e3 {[%emt 0:00:06]} g6 {[%emt 0:00:08]} 4. Nf3 {[%emt 0:00:09]} Bg7 {[%emt 0:00:11]} 5. c3 {[%emt 0:00:08]} O-O {[%emt 0:00:11]} 6. Bc4 {[%emt 0:00:17]} b6 {[%emt 0:02:34]} 7. O-O {[%emt 0:00:15]} Bb7 {[%emt 0:00:07]} 8. h3 {[%emt 0:00:11]} Nbd7 {[%emt 0:00:41]} 9. Nbd2 {[%emt 0:00:11]} Qe8 {[%emt 0:00:37]} 10. Qe2 {[%emt 0:02:21] A48: 1 d4 Nf6 2 Nf3 g6: Torre, London and Colle Systems.} e5 {[%emt 0:00:22]} 11. dxe5 {[%emt 0:00:10]} dxe5 {[%emt 0:00:32]} 12. Bh2 {[%emt 0:00:09] The position is equal.} Qe7 {[%emt 0:01:21]} 13. Rfd1 {[%emt 0:00:41]} Rad8 $146 {[%emt 0:00:24]} (13... Kh8 14. Nb3 a5 15. a4 Rad8 16. Rd2 Ne4 17. Rdd1 Nd6 18. Ba6 Ba8 19. Nfd2 f5 {0-1 Zupec,J (1923)-White,K (2064) Ptuj op 2008 (7)}) 14. Rac1 {[%emt 0:03:39]} e4 {[%emt 0:03:52]} 15. Ne1 {[%emt 0:06:54]} Ne5 {[%emt 0:03:58]} 16. Ba6 {[%emt 0:00:57]} Ba8 {[%emt 0:00:36]} 17. Nc4 {[%emt 0:02:16] [#]} (17. Ra1 $15 {deserves consideration.}) 17... Nd3 $1 $17 {[%emt 0:01:11]} 18. Nxd3 {[%emt 0:03:51]} (18. Rb1 Nc5) 18... exd3 {[%emt 0:00:12][%csl Od3] Black has a strong passed pawn. Black plays in the center} 19. Qf1 {[%emt 0:00:02][%cal Of2f3] [#]} (19. Rxd3 $2 Qe4 20. Qf1 Rxd3 $19 (20... Qxd3 $2 21. Qxd3 Rxd3 22. Nxb6 $19)) 19... Ne4 $1 {[%emt 0:01:22]} 20. Nd2 {[%emt 0:05:37]} (20. Rxd3 $2 Rxd3 21. Qxd3 Nc5 $19) 20... Nc5 {[%emt 0:02:24] Black has more active pieces.} 21. Bc4 {[%emt 0:00:16]} a6 $36 {[%emt 0:02:46][%mdl 2048] Keeping White busy.} 22. Nb3 {[%emt 0:03:02] [#]} Na4 {[%emt 0:26:42]} ({Black should try} 22... b5 $1 $17 {[%cal Rb5c4]} 23. Bxd3 Nxd3 24. Rxd3 Bxg2) 23. Rb1 $11 {[%emt 0:07:42]} b5 {[%emt 0:00:19]} 24. Bxd3 {[%emt 0:01:12]} b4 {[%emt 0:00:20]} 25. cxb4 {[%emt 0:07:06]} (25. Bxa6 Rxd1 26. Rxd1 Nxb2 27. cxb4 Nxd1 28. Qxd1 Qxb4 $17) (25. Rd2 $11) 25... Nxb2 $15 {[%emt 0:00:57]} 26. Rd2 {[%emt 0:00:25] This move loses the game for White.} (26. Nc5 $17) 26... Nxd3 $19 {[%emt 0:00:41]} 27. Rxd3 {[%emt 0:00:22]} Rxd3 {[%emt 0:00:11]} 28. Qxd3 {[%emt 0:00:27]} Be4 {[%emt 0:00:07] This pair of bishops is nice.} (28... Qxb4 29. f3 $14 (29. Bxc7 $2 Qb7 $19) (29. Qxa6 Bxg2 $15)) 29. Qf1 {[%emt 0:00:55]} Bxb1 {[%emt 0:00:13]} ({Not} 29... Qxb4 30. Rc1 $11) 30. Qxb1 {[%emt 0:00:04]} Qxb4 {[%emt 0:00:41]} 31. Bxc7 {[%emt 0:00:18]} Rc8 {[%emt 0:00:19]} 32. Bg3 {[%emt 0:00:38]} h5 {[%emt 0:03:59]} 33. Qd3 {[%emt 0:02:24]} Qb5 {[%emt 0:03:07]} 34. Qxb5 {[%emt 0:04:02]} (34. Qe4 {was worth a try.}) 34... axb5 {[%emt 0:00:07][%mdl 4096] Endgame KRB-KBN} 35. Bd6 {[%emt 0:00:15]} Rc2 {[%emt 0:03:53]} 36. a3 {[%emt 0:00:17]} Bf8 {[%emt 0:00:17]} 37. Bxf8 {[%emt 0:01:42]} Kxf8 {[%emt 0:00:09] KR-KN} 38. Nd4 {[%emt 0:00:01]} Rb2 {[%emt 0:00:20]} 39. g4 $2 {[%emt 0:00:24]} (39. e4) 39... hxg4 {[%emt 0:01:27] Black is clearly winning.} 40. hxg4 {[%emt 0:00:04]} Ke7 {[%emt 0:00:09]} 41. Kg2 {[%emt 0:00:22]} Kd6 {[%emt 0:00:20]} 42. g5 {[%emt 0:00:30]} Kc5 {[%emt 0:03:07]} 43. Kg3 {[%emt 0:00:08]} Ra2 {[%emt 0:00:28]} 44. Kf4 {[%emt 0:00:57]} Rxa3 {[%emt 0:00:09]} 45. Ke5 {[%emt 0:00:24]} b4 {[%emt 0:03:16]} 46. Kf6 {[%emt 0:01:08]} Ra7 {[%emt 0:00:15]} (46... b3 $142 47. Nxb3+ Rxb3 48. Kxf7 Rb6) 47. f4 {[%emt 0:00:44]} Kd5 {[%emt 0:00:48]} 48. f5 {[%emt 0:01:41]} gxf5 {[%emt 0:01:22][%cal Of5f4] White must now prevent ...f4!.} 49. Kxf5 {[%emt 0:00:03]} Re7 {[%emt 0:00:30] Weighted Error Value: White=0.86/Black=0.21 (precise)   Mistake:       	White=5     	Black=1      Inaccurate:     	White=4     	---        OK:         	White=11    	Black=18     Best:        	White=3     	Black=5      Strong:       	---       	Black=1} 0-1